Cogmind - Beta 11 @@@ ROGUE MODE // 2022.04.13 @ 19:24:57 Player: Finestep Result: Destroyed 0B10! Performance ------------- Evolutions (9) 4500 Regions Visited (30) 6000 Robots Destroyed (232) 1160 Value Destroyed (8079) 8079 Prototype IDs (79) 1580 Alien Tech Used (6) 1200 Bonus (15614) 15614 TOTAL SCORE: 38133 Bonus ------- High Alert Combat Kills 824 Follower Combat Kills 2983 Network Hubs Disabled 600 Met Data Miner 300 Met Imprinter 300 Met Zhirov 300 Built Enhanced Grunts 300 A7 Reached Mainframe 300 Hacked Protovariant 500 Scanned by Researcher 500 Met Sigix 2000 Escaped with Sigix 5000 Win 3000 Friendly Fire -1293 Cogmind --------- Core Integrity 243/1600 Matter 300/300 Energy 98/100 System Corruption 17% Temperature Cool (0) Movement Core (50) Location Tau Ceti IV Orbit Parts ------- > --- POWER (2) -------- (None) > --- PROPULSION (8) --- (None) > --- UTILITY (14) ----- Experimental Coolant Injector Machine Analyzer Spectral Analyzer Advanced Melee Analysis Suite Advanced Target Analyzer Graphene Brace > --- WEAPON (2) ------- (None) > --- INVENTORY (5) ---- Null Cannon Sigix Containment Pod Peak State ------------ > --- POWER ------------ Light Antimatter Reactor Light Quantum Reactor > --- PROPULSION ------- Cooled Impulse Thruster Impulse Thruster Array Impulse Thruster Array Improved Q-thruster Improved Q-thruster Improved Q-thruster > --- UTILITY ---------- Medium Storage Unit Machine Analyzer Spectral Analyzer Advanced Sensor Array Experimental Signal Interpreter Advanced Melee Analysis Suite Advanced Melee Analysis Suite Advanced Target Analyzer Experimental Core Analyzer Improved Utility Shielding Graphene Brace Experimental EM Disruption Field Improved Hacking Suite Advanced System Shield > --- WEAPON ----------- Sigix Broadsword > --- INVENTORY -------- Experimental Matter Compressor Null Cannon Gamma Bomb Array Supercharged Sigix Terminator Sigix Containment Pod [Rating: 206] Favorites ----------- Power Light Fission Core Engine Cooled Ion Engine Power Core Light Fission Core Reactor Quantum Reactor Propulsion Improved Titanium Leg Treads Light Treads Leg Improved Titanium Leg Flight Unit Improved VTOL Module Utility Hacking Suite Device Improved Sensor Array Storage Large Storage Unit Processor Advanced Signal Interpreter Hackware Hacking Suite Protection Improved Utility Shielding Weapon Cooled Pulse Rifle Energy Gun Cooled Pulse Rifle Energy Cannon Beam Cannon Ballistic Gun Assault Rifle Ballistic Cannon Light Cannon Launcher Improved Grenade Launcher Special Weapon Mining Laser Impact Weapon Powered Hammer Slashing Weapon Power Sword Piercing Weapon CR-A16's Behemoth Slayer Build | -11 -10 -10 -10 -9 -8 -7 -7 -7 -7 -6 -6 -6 -6 -6 -5 -5 -5 -5 -5 -5 -4 -4 -4 -4 -3 -3 -3 -2 -2 -1 ------- Run | Scr Mat Min Exi Min Mat Fac Low Low Dat Pro Fac Low Low Zio Pro Fac Ext Cet Arc Hub Fac Upp Upp Zhi Pro Res Tes Res Qua Acc Slots Evolved 18 | . . . . . 4 2 . . . . 2 . . . . 2 . . . . 2 . . . . 2 . 2 . 2 Power 1 | . . . . . . . . . . . . . . . . . . . . . 1 . . . . . . . . . Propulsion 5 | . . . . . 1 . . . . . 2 . . . . . . . . . . . . . . . . 1 . 1 Utility 12 | . . . . . 3 2 . . . . . . . . . 2 . . . . 1 . . . . 2 . 1 . 1 Weapon . | . . . . . . . . . . . . . . . . . . . . . . . . . . . . . . . Parts Attached 373 | 7 7 1 . 9 57 15 6 5 2 8 10 4 4 3 . 25 34 20 . 11 31 6 5 11 14 23 17 17 13 8 Power 37 | 1 . . . 2 2 1 . . . . 1 . . . . 1 3 2 . 1 4 1 1 3 1 6 3 3 1 . Engine 8 | 1 . . . 2 1 . . . . . . . . . . . 2 . . 1 . . . 1 . . . . . . Core 15 | . . . . . 1 1 . . . . 1 . . . . 1 1 . . . 3 1 1 1 . 4 . . . . Reactor 14 | . . . . . . . . . . . . . . . . . . 2 . . 1 . . 1 1 2 3 3 1 . Propulsion 82 | 2 2 . . 2 19 2 . 1 . . 5 . 1 1 . 5 4 9 . 6 5 1 . 3 3 2 1 5 1 2 Treads 14 | . 2 . . 2 6 . . . . . . . . . . . . 2 . . . 1 . . 1 . . . . . Leg 32 | 2 . . . . 11 2 . 1 . . . . . . . . . 6 . 6 4 . . . . . . . . . Wheel . | . . . . . . . . . . . . . . . . . . . . . . . . . . . . . . . Hover . | . . . . . . . . . . . . . . . . . . . . . . . . . . . . . . . Flight 36 | . . . . . 2 . . . . . 5 . 1 1 . 5 4 1 . . 1 . . 3 2 2 1 5 1 2 Utility 153 | 2 1 . . 3 19 5 2 1 . 2 3 3 2 . . 16 13 7 . 1 17 4 1 4 7 9 9 9 10 3 Device 72 | 1 . . . 1 5 . . . . 2 . 1 2 . . 8 4 4 . . 11 3 1 2 4 4 5 7 6 1 Storage 10 | 1 1 . . . . 1 . . . . 1 . . . . . 1 1 . 1 1 . . . . 1 . 1 . . Processor 16 | . . . . . 2 . . . . . 1 . . . . 1 1 . . . 2 1 . . . 1 2 1 2 2 Hackware 10 | . . . . . 1 1 . . . . 1 . . . . 3 1 . . . . . . 1 . 1 1 . . . Protection 45 | . . . . 2 11 3 2 1 . . . 2 . . . 4 6 2 . . 3 . . 1 3 2 1 . 2 . Artifact . | . . . . . . . . . . . . . . . . . . . . . . . . . . . . . . . Weapon 101 | 2 4 1 . 2 17 7 4 3 2 6 1 1 1 2 . 3 14 2 . 3 5 . 3 1 3 6 4 . 1 3 Energy Gun 21 | . . . . . 6 5 2 1 1 3 . . 1 . . . . . . . . . . . . 2 . . . . Energy Cannon 14 | . . . . 1 . 1 . . . . . . . . . . 4 . . 1 2 . 1 . . . 3 . . 1 Ballistic Gun 19 | 2 2 1 . . 6 . . 1 1 . . . . . . . . 2 . . . . . 1 1 1 1 . . . Ballistic Cannon 3 | . . . . 1 2 . . . . . . . . . . . . . . . . . . . . . . . . . Launcher 19 | . . . . . 1 1 2 1 . 3 . . . . . 1 3 . . . . . 2 . 2 1 . . . 2 Special Weapon 2 | . 2 . . . . . . . . . . . . . . . . . . . . . . . . . . . . . Impact Weapon 2 | . . . . . 1 . . . . . 1 . . . . . . . . . . . . . . . . . . . Slashing Weapon 10 | . . . . . 1 . . . . . . 1 . 1 . 2 3 . . . . . . . . 1 . . 1 . Piercing Weapon 11 | . . . . . . . . . . . . . . 1 . . 4 . . 2 3 . . . . 1 . . . . Special Melee Weapon . | . . . . . . . . . . . . . . . . . . . . . . . . . . . . . . . Unidentified Prototypes 35 | . . . . . 3 2 . . . . . 1 . . . . 1 6 . . 3 . 1 4 . 3 3 3 3 2 Corrupted Parts 3 | . . . . . . . . . . . . . . . . . . 2 . . . . . . . . . . . 1 System Corruption 12 | . . . . . . . . . . . . . . . . . . 3 . . . . . . . . . . . 9 Parts Lost 65 | . . . . 5 7 . . . . . . . . . . 1 6 4 . 4 7 . 2 . . 2 6 2 . 19 Power 11 | . . . . 2 1 . . . . . . . . . . . 2 . . . 1 . . . . 1 2 . . 2 Propulsion 18 | . . . . . 1 . . . . . . . . . . 1 2 3 . 1 1 . 1 . . . 1 . . 7 Utility 27 | . . . . 1 3 . . . . . . . . . . . 2 1 . 2 4 . . . . 1 3 2 . 8 Weapon 9 | . . . . 2 2 . . . . . . . . . . . . . . 1 1 . 1 . . . . . . 2 Highest Loss Streak 12 | . . . . 3 4 . . . . . . . . . . 1 3 4 . 1 7 . 1 . . 1 3 2 . 12 To Critical Strikes 1 | . . . . . 1 . . . . . . . . . . . . . . . . . . . . . . . . . Average Slot Usage (%) 93 | . 100 100 100 96 97 100 100 100 86 100 93 89 98 100 100 97 90 86 94 93 94 30 29 55 83 88 82 81 86 62 Engine 3 | . 14 14 14 12 7 5 . . . . . . . . . . 2 . . 1 1 . . 3 3 . . . . . Core 3 | . . . . . . 1 7 7 7 7 5 6 6 6 6 5 2 . . . 4 1 1 4 5 7 5 . . . Treads 5 | . 27 28 28 28 7 . . . . . . . . . . . . 7 5 3 . 1 1 . 2 . . . . . Leg 11 | . . . . . 19 23 23 23 23 23 . . . . . . . 3 22 24 28 . . . . . . . . . Flight 8 | . . . . . . . . . . . 33 31 36 37 37 30 25 10 . . . 5 5 16 24 22 18 19 20 13 Device 9 | . 14 14 14 9 11 7 7 7 7 7 6 6 6 6 6 7 12 8 11 9 7 9 10 9 18 24 12 16 15 8 Storage 7 | . 14 14 14 14 9 7 7 7 7 7 6 6 6 6 6 5 5 5 5 6 5 . . . . . 4 4 4 1 Processor 7 | . . . . . 3 7 7 7 7 7 6 6 6 6 6 10 8 11 11 11 11 9 10 10 10 9 17 16 22 23 Hackware 10 | . . . . . 5 15 15 15 15 15 19 18 18 18 18 16 13 16 16 16 14 . . 4 5 5 9 11 8 5 Protection 8 | . . . . 4 14 14 15 15 15 15 6 5 6 6 6 8 7 7 5 5 9 . . 3 6 7 4 . 2 1 Energy Gun 3 | . . . . . 5 14 14 6 . 6 . . 5 2 . . . . . . . . . . . 4 . . . . Energy Cannon 1 | . . . . 13 2 . . . . . . . . . . . . . . . 4 . . . . . . . . . Ballistic Gun 5 | . 27 28 28 2 7 . . 7 1 7 . . . . . . . 9 11 8 . . . 3 6 . 2 . . . Piercing Weapon 1 | . . . . . . . . . . . . . . 4 6 5 4 . . 1 4 5 . . . 1 4 4 1 . Naked Turns 8 | . . . . . . . . . . . . . . . . . . . . . 8 . . . . . . . . . Heaviest Build 94 | 15 30 30 29 36 48 49 48 48 42 44 23 24 28 28 25 36 42 60 60 60 94 12 7 25 46 52 53 54 53 53 Greatest Support 100 | 20 40 40 40 40 60 60 60 60 60 60 25 25 31 34 34 39 38 100 70 95 95 7 7 25 46 59 53 56 56 63 Greatest Overweight (x) 3 | . . . . . 1 . . . . . . . . . . . 1 2 . . 1 1 . 3 . 1 1 1 1 3 Average Overweight (x) . | . . . . . . . . . . . . . . . . . . . . . . . . . . . . . . . Largest Inventory Capacity 15 | 8 15 15 15 15 15 15 15 15 15 15 15 10 10 10 10 10 10 10 10 10 15 5 5 5 5 10 10 10 10 10 Average Capacity 12 | 6 14 15 15 15 15 15 15 15 15 15 10 10 10 10 10 10 10 10 10 10 10 5 5 5 5 5 10 10 10 7 Most Carried 15 | 7 15 15 15 15 15 15 15 15 15 15 15 10 10 10 10 10 10 10 10 10 14 5 4 5 5 5 10 10 10 9 Average Carried 11 | 5 11 15 14 14 14 14 15 14 15 15 9 10 9 9 9 9 9 9 10 9 10 3 2 4 4 4 8 9 9 6 Final Capacity 15 | 8 15 15 15 15 15 15 15 15 15 15 10 10 10 10 10 10 10 10 10 10 5 5 5 5 5 10 10 10 10 5 Final Carried 15 | 7 15 15 15 15 15 15 15 15 15 15 10 10 10 10 10 10 10 10 10 10 5 4 4 5 5 4 10 8 9 3 Class Distribution -------------------- 32% | Hacker-Mutant 23% | Mutant 17% | Hacker-Sprinter 12% | Scavenger-Mutant 4% | Commander-Sprinter 3% | Sprinter Dominant Class ---------------- Mutant | -10/Materials Mutant | -10/Mines Mutant | -10/Exiles Mutant | -9/Mines Mutant | -8/Materials Hacker-Mutant | -7/Factory Hacker-Mutant | -7/Lower Caves Hacker-Mutant | -7/Lower Caves Hacker-Mutant | -7/Data Miner Hacker-Mutant | -6/Proximity Caves Hacker-Sprinter | -6/Factory Hacker-Sprinter | -6/Lower Caves Hacker-Sprinter | -6/Lower Caves Hacker-Sprinter | -6/Zion Hacker-Sprinter | -5/Proximity Caves Hacker-Sprinter | -5/Factory Commander-Sprinter | -5/Extension Scavenger-Mutant | -5/Cetus Scavenger-Mutant | -5/Archives Scavenger-Mutant | -5/Hub_04(d) Hacker-Mutant | -4/Factory Sprinter | -4/Upper Caves Sprinter | -4/Upper Caves Sprinter | -4/Zhirov Derelict-Mutant | -3/Proximity Caves Sprinter | -3/Research Hacker-Sprinter | -3/Testing Hacker-Sprinter | -2/Research Hacker-Ninja | -2/Quarantine Mutant | -1/Access Resources | -11 -10 -10 -10 -9 -8 -7 -7 -7 -7 -6 -6 -6 -6 -6 -5 -5 -5 -5 -5 -5 -4 -4 -4 -4 -3 -3 -3 -2 -2 -1 ----------- Run | Scr Mat Min Exi Min Mat Fac Low Low Dat Pro Fac Low Low Zio Pro Fac Ext Cet Arc Hub Fac Upp Upp Zhi Pro Res Tes Res Qua Acc Matter Collected 7088 | 288 255 145 . 238 1167 186 185 234 . 219 162 60 28 50 . 277 344 456 . 317 308 60 18 224 323 330 310 311 543 50 Remotely . | . . . . . . . . . . . . . . . . . . . . . . . . . . . . . . . Salvage Created 11495 | 125 401 104 . 500 1975 587 157 392 . 212 375 207 45 . . 500 1258 356 . 898 975 223 49 224 65 396 268 311 533 359 Parts 519 | 6 37 5 . 28 107 19 6 13 . 5 7 10 3 . . 13 59 15 . 43 49 2 3 . 2 21 22 9 14 21 Haulers Intercepted 20 | . . . . . 5 1 . . . . 1 . . . . 1 3 . . 2 2 . . . . 1 . 1 1 2 Recyclers Shooed 6 | . . . . 1 . . . . . . 1 . . . . 1 1 . . . 1 . . . . 1 . . . . Parts Field Recycled . | . . . . . . . . . . . . . . . . . . . . . . . . . . . . . . . Retrieved Matter . | . . . . . . . . . . . . . . . . . . . . . . . . . . . . . . . Parts Self-Destructed 39 | . . . . . . . 4 9 . 6 . 3 . . . . . . . . . 1 7 . 9 . . . . . Prevented . | . . . . . . . . . . . . . . . . . . . . . . . . . . . . . . . Kills | -11 -10 -10 -10 -9 -8 -7 -7 -7 -7 -6 -6 -6 -6 -6 -5 -5 -5 -5 -5 -5 -4 -4 -4 -4 -3 -3 -3 -2 -2 -1 ------- Run | Scr Mat Min Exi Min Mat Fac Low Low Dat Pro Fac Low Low Zio Pro Fac Ext Cet Arc Hub Fac Upp Upp Zhi Pro Res Tes Res Qua Acc Combat Hostiles Destroyed 149 | . 10 2 . 12 32 6 7 7 . 10 1 . . . . 5 16 7 . 9 6 . 5 . 1 4 5 . 1 3 Melee 24 | . . . . . . . . . . . . . . . . . 10 1 . . 5 . . . . 2 5 . . 1 Guns 67 | . 10 2 . 1 25 5 1 4 . 2 . . . . . . . 6 . 8 . . . . 1 2 . . . . Cannons 20 | . . . . 11 6 . . . . . . . . . . . 1 . . 1 1 . . . . . . . . . AOE 34 | . . . . . . . 6 3 . 8 . . . . . 5 5 . . . . . 5 . . . . . . 2 Classes Destroyed 21 | 2 4 . . 3 2 1 . 2 . . . 1 . . . . 3 . . . . . . . . 1 2 . . . Worker 15 | . 1 . . 2 4 4 . . . . 1 . . . . 1 . . . . . . . . . . . . 1 1 Builder 7 | . . . . . . . . . . . . . . . . . 1 . . 1 4 . . . . . . . 1 . Tunneler 2 | 1 . . . . . . . . . . . . . . . . . . . . . . . . . . . 1 . . Hauler 20 | . . . . . 5 1 . . . . 1 . . . . 1 3 . . 2 2 . . . . 1 . 1 1 2 Recycler 17 | 1 1 . . . 2 3 . . . . 1 . . . . 2 1 . . . 2 . . . . 1 . 1 2 . Minesweeper 2 | . . . . . . . . 1 . . . 1 . . . . . . . . . . . . . . . . . . Mechanic 1 | . . . . . . . . . . . . . . . . . . . . . . . . . . . 1 . . . Operator 4 | . . . . . . . . . . . . . . . . . 1 . . 1 1 . . . . . . . . 1 Watcher 11 | . 1 . . . 2 . . . . . 1 . . . . 1 1 . . 2 . . . . . 1 . 1 1 . Swarmer 45 | . 3 2 . 2 4 . 4 . . 6 . . . . . 4 6 4 . . . . 5 . . 2 3 . . . Cutter 5 | . . . . . . . . . . . . . . . . . . . . . . . . . . 2 . . . 3 Grunt 52 | . 7 . . 5 15 1 2 5 . 3 . . . . . . 5 . . 6 2 . . . 1 . . . . . Brawler 4 | . . . . 2 1 . . 1 . . . . . . . . . . . . . . . . . . . . . . Duelist 3 | . . . . 1 1 . 1 . . . . . . . . . . . . . . . . . . . . . . . Protector 1 | . . . . . . . . . . . . . . . . . . . . . . . . . . . 1 . . . Researcher 1 | . . . . . . . . . . . . 1 . . . . . . . . . . . . . . . . . . Sentry 18 | . . . . 2 9 . . . . 1 . . . . . . 2 . . 2 2 . . . . . . . . . Hunter 7 | . . . . . 2 2 . 1 . . 1 . . . . . . . . 1 . . . . . . . . . . Programmer 8 | . . . . . . 3 . . . . . . . . . 1 1 . . . 2 . . . . . 1 . . . Behemoth 1 | . . . . . . . . . . . . . . . . . 1 . . . . . . . . . . . . . Cetus Guard 3 | . . . . . . . . . . . . . . . . . . 3 . . . . . . . . . . . . Lightning 1 | . . . . . . . . . . . . . . . . . . . . . . . . . . . . . 1 . Packrat 1 | . . . . . . . . . . . . 1 . . . . . . . . . . . . . . . . . . Samaritan 2 | . . . . . . . . 1 . . . . 1 . . . . . . . . . . . . . . . . . Savage 3 | . . . . . . . . . . . . . . . . . 1 2 . . . . . . . . . . . . Commander 1 | . . . . . . . . . . . . 1 . . . . . . . . . . . . . . . . . . Best Kill Streak 6 | 2 6 2 . 6 5 3 4 4 . 3 2 1 1 . . 4 4 4 . 6 2 . 5 . 1 2 4 2 3 6 Combat Bots Only 6 | . 4 2 . 3 5 2 4 4 . 3 1 . . . . 4 3 4 . 6 2 . 5 . 1 2 4 . 1 3 Max Kills in Single Turn 3 | 1 1 1 . 1 1 2 3 1 . 2 1 1 1 . . 3 3 3 . 2 1 . 2 . 1 1 1 1 1 2 Gunslinging . | . . . . . . . . . . . . . . . . . . . . . . . . . . . . . . . Exploded 3 | . . . . . . . 3 1 . 2 . . . . . 3 3 . . . . . 2 . . . . . . 2 Melee 1 | . . . . . . . . . . . . . . . . . 1 1 . . 1 . . . . 1 1 . . 1 Uniques/NPCs Destroyed . | . . . . . . . . . . . . . . . . . . . . . . . . . . . . . . . Combat | -11 -10 -10 -10 -9 -8 -7 -7 -7 -7 -6 -6 -6 -6 -6 -5 -5 -5 -5 -5 -5 -4 -4 -4 -4 -3 -3 -3 -2 -2 -1 -------- Run | Scr Mat Min Exi Min Mat Fac Low Low Dat Pro Fac Low Low Zio Pro Fac Ext Cet Arc Hub Fac Upp Upp Zhi Pro Res Tes Res Qua Acc Damage Taken 17690 | . 255 109 . 681 2214 495 231 50 . 411 211 . . . . 431 1003 1321 . 1114 2896 137 240 . 78 738 1481 279 564 2751 Core 4289 | . 47 7 . 178 296 87 58 . . 116 89 . . . . 102 252 78 . 163 884 107 151 . . 119 135 19 44 1357 Absorbed by Shields 374 | . . . . . 152 . . . . . . . . . . . 81 47 . 16 . . . . 63 15 . . . . Reduced by Siege Mode 122 | . . . . . . . . . . . . . . . . . . 97 . 25 . . . . . . . . . . Redirected to Shielding 356 | . . . . . . 7 11 . . . . . . . . 47 35 . . . . . . . 15 131 . . . 110 Regen/Repaired (Parts) 877 | . . . . . 98 . . . . . . . . . . . . 79 . 123 205 . . . . . . . 198 174 Core Remaining (%) 52 | 100 . . . 7 46 . . . . 62 . . . . 89 . . . . 40 . . . . . . 80 . 88 15 Volleys Fired 509 | 3 46 11 . 53 160 36 7 25 . 18 . . . . . 2 14 30 . 40 18 . 5 18 8 8 4 . . 3 Largest 2 | 2 2 2 . 2 2 2 2 2 . 2 . . . . . 1 1 2 . 2 1 . 1 1 2 2 1 . . 1 Hottest 182 | 40 100 40 . 95 122 40 40 48 . 48 . . . . . 36 98 70 . 98 98 . 36 25 55 182 50 . . 130 Shots Fired 889 | 6 90 22 . 95 311 72 8 50 . 27 . . . . . 2 14 61 . 58 18 . 5 18 13 13 3 . . 3 Gun 676 | 6 88 22 . 24 238 71 3 46 . 18 . . . . . . . 61 . 56 . . . 18 12 12 1 . . . Cannon 180 | . . . . 71 73 . . . . . . . . . . . 11 . . 2 18 . . . . . 2 . . 3 Launcher 31 | . . . . . . 1 5 4 . 9 . . . . . 2 3 . . . . . 5 . 1 1 . . . . Special 2 | . 2 . . . . . . . . . . . . . . . . . . . . . . . . . . . . . Kinetic 538 | 6 88 22 . 49 191 . . 24 . 10 . . . . . . . 61 . 56 . . . 18 12 . 1 . . . Thermal 320 | . 2 . . 46 120 71 3 22 . 8 . . . . . . 11 . . 2 18 . . . . 12 2 . . 3 Explosive 31 | . . . . . . 1 5 4 . 9 . . . . . 2 3 . . . . . 5 . 1 1 . . . . Electromagnetic . | . . . . . . . . . . . . . . . . . . . . . . . . . . . . . . . Robot Hit Streak 33 | 3 12 3 . 10 33 17 3 13 . 15 . . . . . . 3 20 . 12 16 . . 7 9 2 1 . . . Robot Miss Streak 7 | 1 6 7 . 3 7 2 1 2 . 2 . . . . . . 3 3 . 4 1 . . 1 2 2 . . . 3 Penetration Max 1 | . . . . . . . . 1 . . . . . . . . . 1 . 1 . . . . . . 1 . . . Secondary Targets 4 | . 1 . . . 1 . . 1 . . . . . . . . . 1 . . . . . . . . . . . . Max Gunslinging Chain 1 | . 1 . . . 1 . . 1 . . . . . . . . . 1 . . . . . . . . . . . . Shots Hit Robots 722 | 3 58 7 . 60 194 52 6 34 . 9 8 7 1 . . 18 51 47 . 38 48 5 . 16 9 12 18 9 7 5 Core Hits 368 | 3 24 4 . 21 79 19 10 24 . 23 1 4 1 . . 10 28 19 . 26 18 3 7 6 4 8 10 4 4 8 Critical Kills 6 | . . . . . . . . . . . . . . . . . . 3 . 2 . . . . . 1 . . . . Critical Parts Destroyed 9 | . . . . . 1 . . . . . 1 . . . . . . 3 . 3 . . . . . . 1 . . . Critical Strikes 53 | . . . . . 10 1 . 3 . . 1 . . . . 2 7 9 . 5 9 1 . . . 2 2 . 1 . Burn 11 | . . . . . 7 1 . 3 . . . . . . . . . . . . . . . . . . . . . . Destroy 16 | . . . . . 1 . . . . . . . . . . . . 8 . 5 . . . . . 1 1 . . . Blast 2 | . . . . . 2 . . . . . . . . . . . . . . . . . . . . . . . . . Smash 1 | . . . . . . . . . . . 1 . . . . . . . . . . . . . . . . . . . Sever 4 | . . . . . . . . . . . . . . . . 2 1 . . . . . . . . . . . 1 . Impale 19 | . . . . . . . . . . . . . . . . . 6 1 . . 9 1 . . . 1 1 . . . Melee Attacks 406 | . . . . . 2 . . . . . 17 14 6 1 . 86 69 6 . 9 55 5 . . . 23 53 22 29 9 Impact 18 | . . . . . 1 . . . . . 17 . . . . . . . . . . . . . . . . . . . Slashing 136 | . . . . . 1 . . . . . . 14 6 1 . 60 25 3 . . . . . . . 2 . . 15 9 Piercing 252 | . . . . . . . . . . . . . . . . 26 44 3 . 9 55 5 . . . 21 53 22 14 . Sneak Attacks 60 | . . . . . . . . . . . 4 7 1 . . 8 12 . . 2 10 . . . . 1 4 4 5 2 Combat Hostiles 6 | . . . . . . . . . . . . . . . . . 5 . . . . . . . . . 1 . . . Follow-up Attacks 9 | . . . . . . . . . . . . . . . . 5 3 1 . . . . . . . . . . . . Damage Inflicted 25235 | 41 760 110 . 885 3290 1173 557 1080 . 1265 590 626 86 . . 1317 2959 1829 . 1484 2322 463 362 256 167 469 790 588 741 1025 Guns 8836 | 41 751 109 . 151 2514 1150 39 745 . 174 . . . . . . . 1550 . 1027 . . . 256 167 144 18 . . . Cannons 2120 | . . . . 730 762 . . . . . . . . . . . 232 . . 68 328 . . . . . . . . . Explosions 3296 | . . . . . . 23 518 333 . 1091 . . . . . 323 421 . . . . . 362 . . . . . . 225 Melee 10919 | . . . . . . . . . . . 590 626 86 . . 994 2306 279 . 384 1994 463 . . . 325 772 588 741 771 Ramming 64 | . 9 1 . 4 14 . . 2 . . . . . . . . . . . 5 . . . . . . . . . 29 Kinetic 6637 | 41 751 109 . 381 1879 . . 381 . 77 . . . . . . . 1550 . 1027 . . . 256 167 . 18 . . . Thermal 4495 | . . . . 500 1397 1150 39 364 . 97 . . . . . . 232 . . 68 328 . . . . 144 . . . 176 Explosive 3071 | . . . . . . 23 518 333 . 1091 . . . . . 323 421 . . . . . 362 . . . . . . . Electromagnetic 49 | . . . . . . . . . . . . . . . . . . . . . . . . . . . . . . 49 Impact 590 | . . . . . . . . . . . 590 . . . . . . . . . . . . . . . . . . . Slashing 3274 | . . . . . . . . . . . . 626 86 . . 733 634 135 . . . . . . . . . . 289 771 Piercing 7055 | . . . . . . . . . . . . . . . . 261 1672 144 . 384 1994 463 . . . 325 772 588 452 . Highest Corruption 17 | . . . . 7 1 5 5 5 5 5 3 3 3 3 . 3 3 6 6 6 14 14 14 14 14 1 8 . 4 17 Average Corruption 4 | . . . . 6 1 2 5 5 5 5 2 3 3 3 . 2 3 5 6 6 4 14 14 14 14 1 3 . 3 12 Corruption Purged . | . . . . . . . . . . . . . . . . . . . . . . . . . . . . . . . Corruption Blocked 30 | . . . . . . . . . . . . . . . . . . . . . . . . . . . 30 . . . Effects 254 | . . . . 23 15 17 22 34 2 14 1 3 4 . . 3 13 18 2 17 5 5 5 8 18 1 13 . 1 10 Message Errors 60 | . . . . 3 8 4 4 7 1 5 . 2 1 . . 1 2 5 . 5 1 1 1 4 2 . 2 . . 1 Matter Fused 57 | . . . . 6 2 5 7 7 . 3 . . 1 . . 1 1 3 1 4 . . 3 2 7 1 1 . 1 1 Heat Flow Errors 37 | . . . . 5 1 3 2 6 . . . 1 1 . . 1 3 4 1 . 2 2 . . 2 . 3 . . . Energy Discharges 29 | . . . . 2 3 2 2 4 1 4 1 . . . . . 1 1 . 1 . . . . 2 . 2 . . 3 Parts Rejected 3 | . . . . . . . . . . . . . . . . . 2 1 . . . . . . . . . . . . Data Loss (minor) 28 | . . . . 3 1 2 4 5 . 1 . . . . . . 2 . . 4 . 2 . 1 2 . 1 . . . Data Loss (major) 12 | . . . . 1 . . 2 1 . . . . 1 . . . 2 . . 1 . . . 1 . . 2 . . 1 Misfires 11 | . . . . 2 . 1 . 4 . 1 . . . . . . . 2 . 1 . . . . . . . . . . Alerts 5 | . . . . 1 . . . . . . . . . . . . . 1 . . 1 . . . 1 . 1 . . . Misdirections 8 | . . . . . . . . . . . . . . . . . . . . . 1 . 1 . 2 . . . . 4 Weapon Failures 4 | . . . . . . . 1 . . . . . . . . . . 1 . 1 . . . . . . 1 . . . Overload Shots . | . . . . . . . . . . . . . . . . . . . . . . . . . . . . . . . Overflow Damage 1716 | . . . . 6 12 . . . . 3 162 83 . . . 50 115 . . 12 338 68 3 . . 30 116 88 384 246 Projectiles 42 | . . . . 6 12 . . . . . . . . . . . 5 . . . 19 . . . . . . . . . Explosions 100 | . . . . . . . . . . 3 . . . . . . 17 . . . . . 3 . . . . . . 77 Melee 1574 | . . . . . . . . . . . 162 83 . . . 50 93 . . 12 319 68 . . . 30 116 88 384 169 Knockbacks 13 | . . . . 4 7 . . . . . 2 . . . . . . . . . . . . . . . . . . . Impact 2 | . . . . . . . . . . . 2 . . . . . . . . . . . . . . . . . . . Kinetic 10 | . . . . 4 6 . . . . . . . . . . . . . . . . . . . . . . . . . Secondary 1 | . . . . . 1 . . . . . . . . . . . . . . . . . . . . . . . . . Self-Inflicted Damage 321 | . . . . . . . 35 . . . . . . . . . 12 . . . . . 26 . . 29 . . . 219 Shots 7 | . . . . . . . 1 . . . . . . . . . 1 . . . . . 1 . . 1 . . . 3 Rammed 7 | . 1 1 . 1 . . . . . . . . . . . . . . . . . . . . . . . . . 4 Targets Rammed 11 | . 1 1 . 1 2 . . 1 . . . . . . . . . . . 1 . . . . . . . . . 4 Kicked 4 | . . . . . 2 . . 1 . . . . . . . . . . . 1 . . . . . . . . . . Crushed . | . . . . . . . . . . . . . . . . . . . . . . . . . . . . . . . Highest Temperature 450 | . 20 . . 236 379 178 273 279 . 24 5 113 255 210 129 91 229 244 242 84 420 210 . . 260 159 229 2 450 40 Average Temperature 83 | . 9 . . 68 82 77 110 100 . 10 1 44 91 84 56 24 69 48 138 18 128 100 . . 49 64 104 2 246 28 Received Heat Transfer 2801 | . 126 . . 144 998 . 9 27 . 75 9 . . . . 54 194 180 . 351 468 9 18 . 13 54 . 36 . 36 Effects 19 | . . . . . 1 . . . . . . . . . . . . . 2 . 4 . . . . . . . 12 . Shutdowns 6 | . . . . . . . . . . . . . . . . . . . . . 2 . . . . . . . 4 . Energy Bleed 4 | . . . . . . . . . . . . . . . . . . . . . 1 . . . . . . . 3 . Interference 3 | . . . . . . . . . . . . . . . . . . . 2 . . . . . . . . . 1 . Matter Decay 1 | . . . . . . . . . . . . . . . . . . . . . . . . . . . . . 1 . Short Circuit 3 | . . . . . . . . . . . . . . . . . . . . . 1 . . . . . . . 2 . Damage (minor) 2 | . . . . . 1 . . . . . . . . . . . . . . . . . . . . . . . 1 . Siege Activations 3 | . . . . . . . . . . . . . . . . . . 2 . 1 . . . . . . . . . . Total Turns 103 | . . . . . . . . . . . . . . . . . . 69 . 34 . . . . . . . . . . Longest Duration 50 | . . . . . . . . . . . . . . . . . . 50 . 34 . . . . . . . . . . Robots Corrupted . | . . . . . . . . . . . . . . . . . . . . . . . . . . . . . . . Combat Hostiles . | . . . . . . . . . . . . . . . . . . . . . . . . . . . . . . . Parts Fried 6 | . . . . . . . . . . . 5 . . . . . . 1 . . . . . . . . . . . . Impact Corruptions 6 | . . . . . . . . . . . 6 . . . . . . . . . . . . . . . . . . . Robots Melted 2 | . . . . . 1 1 . . . . . . . . . . . . . . . . . . . . . . . . Combat Hostiles 2 | . . . . . 1 1 . . . . . . . . . . . . . . . . . . . . . . . . Parts Melted 22 | . . . . . 6 10 . 1 . . . . . . . . 2 . . 1 . . . . . . . . 2 . Heat Transferred 8783 | . . . . 1073 3219 2109 74 925 . 185 . . . . . . 350 . . 100 500 . . . . 148 . . . 100 Parts Sabotaged 4 | . . . . . . . . . . . . . . . . . . . . . 4 . . . . . . . . . Parts Stolen . | . . . . . . . . . . . . . . . . . . . . . . . . . . . . . . . Parts Stripped . | . . . . . . . . . . . . . . . . . . . . . . . . . . . . . . . Power Chain Reactions 1 | . . . . . . . . . . . . . . . . . . . . . . . . . . . . . . 1 Missiles Intercepted . | . . . . . . . . . . . . . . . . . . . . . . . . . . . . . . . Alert | -11 -10 -10 -10 -9 -8 -7 -7 -7 -7 -6 -6 -6 -6 -6 -5 -5 -5 -5 -5 -5 -4 -4 -4 -4 -3 -3 -3 -2 -2 -1 ------- Run | Scr Mat Min Exi Min Mat Fac Low Low Dat Pro Fac Low Low Zio Pro Fac Ext Cet Arc Hub Fac Upp Upp Zhi Pro Res Tes Res Qua Acc Peak Influence 1707 | 10 310 89 . 380 547 291 . . . . 533 . . . . 434 1707 1519 607 796 528 . . . . 451 702 330 315 731 Initial 791 | . 6 62 . . 21 220 . . . . 129 . . . . . 49 791 607 212 125 . . . . 117 253 43 185 188 Average 304 | 5 116 63 . 195 238 125 . . . . 312 . . . . 158 533 1175 607 466 289 . . . . 260 416 134 168 466 Maximum Alert Level 5 | . 1 . . 1 2 1 . . . . 2 . . . . 2 5 4 2 3 2 . . . . 2 3 1 1 3 Low Security (%) 47 | 100 78 100 . 47 47 65 . . . . 36 . . . . 56 43 . . . 39 . . . . 22 16 72 64 4 Level 1 30 | . 21 . . 52 40 34 . . . . 24 . . . . 40 5 . . 40 37 . . . . 67 25 27 35 35 Level 2 12 | . . . . . 11 . . . . . 38 . . . . 3 12 . 100 45 22 . . . . 9 56 . . 51 Level 3 5 | . . . . . . . . . . . . . . . . . 26 32 . 14 . . . . . . . . . 8 Level 4 4 | . . . . . . . . . . . . . . . . . 7 67 . . . . . . . . . . . . Level 5 . | . . . . . . . . . . . . . . . . . 3 . . . . . . . . . . . . . High Security . | . . . . . . . . . . . . . . . . . . . . . . . . . . . . . . . Max Security . | . . . . . . . . . . . . . . . . . . . . . . . . . . . . . . . Squads Dispatched 64 | . 5 . . . 5 2 . . . . 4 . . . . 13 3 . . 7 4 . . . . 6 9 . 2 4 Investigation 25 | . 2 . . . 2 1 . . . . 3 . . . . 6 2 . . 3 1 . . . . 2 1 . 1 1 Extermination 6 | . . . . . . 1 . . . . . . . . . 2 . . . . 1 . . . . . 1 . 1 . Reinforcement 19 | . 3 . . . 2 . . . . . . . . . . 3 1 . . 1 . . . . . 1 5 . . 3 Assault 9 | . . . . . 1 . . . . . 1 . . . . 1 . . . 3 1 . . . . . 2 . . . Garrison 5 | . . . . . . . . . . . . . . . . 1 . . . . 1 . . . . 3 . . . . Intercept . | . . . . . . . . . . . . . . . . . . . . . . . . . . . . . . . Searches Triggered 1 | . . . . . . . . . . . . . . . . . . . . . . . . . . . 1 . . . Data Miner Redirects 11 | . . . . . . . . . . . 3 . . . . 1 1 . . 2 1 . . . . . 1 . 1 1 Construction Impeded 1 | . . . . . . . . . . . . . . . . . . . . . . . . . . . 1 . . . Haulers Reinforced 1 | . . . . . . . . . . . . . . . . 1 . . . . . . . . . . . . . . Active Scanning Responses . | . . . . . . . . . . . . . . . . . . . . . . . . . . . . . . . Cargo Convoy Interrupts 1 | . . . . . . . . . . . . . . . . . . . . . 1 . . . . . . . . . Stealth | -11 -10 -10 -10 -9 -8 -7 -7 -7 -7 -6 -6 -6 -6 -6 -5 -5 -5 -5 -5 -5 -4 -4 -4 -4 -3 -3 -3 -2 -2 -1 --------- Run | Scr Mat Min Exi Min Mat Fac Low Low Dat Pro Fac Low Low Zio Pro Fac Ext Cet Arc Hub Fac Upp Upp Zhi Pro Res Tes Res Qua Acc Distress Signals 26 | . . . . . 3 2 . . . . 3 . . . . 2 3 1 . 1 3 . . . . 1 1 1 1 4 Communications Jammed 181 | . . . . . . . . . . . . . . . . 43 57 55 . . . . . . . 22 3 . 1 . Distress Signals 138 | . . . . . . . . . . . . . . . . 5 57 55 . . . . . . . 19 1 . 1 . Times Spotted 474 | . 19 3 . 20 55 14 7 6 . 13 12 . . . . 32 53 27 . 28 42 1 12 . 9 14 35 13 17 42 Peak Tracking Total 19 | . 5 3 . 8 6 3 3 4 . 4 6 . . . . 9 8 8 . 11 13 1 11 . 4 6 8 4 7 19 Tactical Retreats 57 | . . . . 4 3 1 . . . . . . . . . 8 2 . . 4 4 1 2 . 2 2 9 6 1 8 Traps | -11 -10 -10 -10 -9 -8 -7 -7 -7 -7 -6 -6 -6 -6 -6 -5 -5 -5 -5 -5 -5 -4 -4 -4 -4 -3 -3 -3 -2 -2 -1 ------- Run | Scr Mat Min Exi Min Mat Fac Low Low Dat Pro Fac Low Low Zio Pro Fac Ext Cet Arc Hub Fac Upp Upp Zhi Pro Res Tes Res Qua Acc Traps Triggered 17 | . 1 . . . 1 . . . . . . . . . . 2 5 . . . 3 . . . . 2 2 . 1 . Indirectly . | . . . . . . . . . . . . . . . . . . . . . . . . . . . . . . . Trap Hack Attempts . | . . . . . . . . . . . . . . . . . . . . . . . . . . . . . . . Triggered . | . . . . . . . . . . . . . . . . . . . . . . . . . . . . . . . Disarmed . | . . . . . . . . . . . . . . . . . . . . . . . . . . . . . . . Reprogrammed 19 | . . . . . . . . . . . 6 . . . . 7 . . . . . . . . . . . 6 . . Reused 5 | . . . . . . . . . . . . . . . . 4 . . . . . . . . . . . 1 . . Traps Extracted . | . . . . . . . . . . . . . . . . . . . . . . . . . . . . . . . Installed 3 | . . . . . . . . . . . . . . . . 1 . . . . 2 . . . . . . . . . Triggered 7 | . . . . 1 . . . . . . . . . . . 4 . . . 1 . . . . . . . 1 . . Most Traps Carried 4 | . . . . 4 4 4 . . . . . 4 4 4 4 4 3 3 3 3 3 . . . . . . . . . Machines | -11 -10 -10 -10 -9 -8 -7 -7 -7 -7 -6 -6 -6 -6 -6 -5 -5 -5 -5 -5 -5 -4 -4 -4 -4 -3 -3 -3 -2 -2 -1 ---------- Run | Scr Mat Min Exi Min Mat Fac Low Low Dat Pro Fac Low Low Zio Pro Fac Ext Cet Arc Hub Fac Upp Upp Zhi Pro Res Tes Res Qua Acc Machines Disabled 35 | . 1 . . . 1 1 . . . . 1 . . . . . 4 4 . . 3 . . . . 1 7 . 10 2 Max in Single Turn 1 | . 1 . . . 1 1 . . . . 1 . . . . . 1 1 . . 1 . . . . 1 1 . 1 1 Garrison Access 6 | . . . . . . 1 . . . . 1 . . . . 1 . . . 2 1 . . . . . . . . . Network Hub 3 | . . . . . . . . . . . . . . . . . . . . 3 . . . . . . . . . . Energy Cycler 2 | . . . . . . . . . . . . . . . . . 1 . . . . . . . . . . . . 1 Machines Sabotaged 2 | . . . . . . . . . . . . . . . . . . . . 2 . . . . . . . . . . Garrisons Compromised . | . . . . . . . . . . . . . . . . . . . . . . . . . . . . . . . Overloaded Fab Kills . | . . . . . . . . . . . . . . . . . . . . . . . . . . . . . . . Hacking | -11 -10 -10 -10 -9 -8 -7 -7 -7 -7 -6 -6 -6 -6 -6 -5 -5 -5 -5 -5 -5 -4 -4 -4 -4 -3 -3 -3 -2 -2 -1 --------- Run | Scr Mat Min Exi Min Mat Fac Low Low Dat Pro Fac Low Low Zio Pro Fac Ext Cet Arc Hub Fac Upp Upp Zhi Pro Res Tes Res Qua Acc Machines Accessed 102 | . 7 . 1 . 11 7 . 1 4 . 6 2 . . . 12 6 1 . 6 4 . . 4 . 8 8 3 8 3 Terminals 70 | . 6 . . . 7 5 . . . . 5 . . . . 7 6 1 . 6 2 . . . . 5 6 3 8 3 Fabricators 7 | . . . . . . 1 . . . . . . . . . 4 . . . . . . . . . 1 1 . . . Repair Stations 2 | . . . . . 1 . . . . . . . . . . . . . . . . . . . . . 1 . . . Recycling Units 3 | . 1 . . . 2 . . . . . . . . . . . . . . . . . . . . . . . . . Scanalyzers 2 | . . . . . 1 . . . . . . . . . . . . . . . . . . . . 1 . . . . Garrison Access 6 | . . . . . . 1 . . . . 1 . . . . 1 . . . . 2 . . . . 1 . . . . Total Hacks 467 | . 21 . 5 . 40 17 . 1 33 . 19 6 . . . 50 24 2 . 28 23 . . 16 . 28 53 22 58 21 Successful 247 | . 9 . 5 . 27 11 . 1 33 . 11 6 . . . 35 14 1 . 14 7 . . 16 . 9 21 9 14 4 Failed 220 | . 12 . . . 13 6 . . . . 8 . . . . 15 10 1 . 14 16 . . . . 19 32 13 44 17 Catastrophic 47 | . 1 . . . . . . . . . 2 . . . . 2 2 . . 7 5 . . . . 4 5 4 12 3 Database Lockouts . | . . . . . . . . . . . . . . . . . . . . . . . . . . . . . . . Manual 200 | . 15 . . . 13 2 . . . . 10 . . . . 25 15 1 . 24 18 . . 1 . 13 30 13 20 . Terminals 338 | . 19 . . . 27 13 . . . . 18 . . . . 29 24 2 . 28 10 . . . . 22 45 22 58 21 Fabricators 28 | . . . . . . 2 . . . . . . . . . 20 . . . . . . . . . 3 3 . . . Repair Stations 8 | . . . . . 3 . . . . . . . . . . . . . . . . . . . . . 5 . . . Recycling Units 6 | . 2 . . . 4 . . . . . . . . . . . . . . . . . . . . . . . . . Scanalyzers 8 | . . . . . 6 . . . . . . . . . . . . . . . . . . . . 2 . . . . Garrison Access 18 | . . . . . . 2 . . . . 1 . . . . 1 . . . . 13 . . . . 1 . . . . Terminal Hacks 163 | . 3 . 5 . 10 6 . 1 33 . 9 6 . . . 13 10 1 . 9 1 . . 16 . 3 15 6 12 4 Record 26 | . . . 5 . . . . . 11 . . 5 . . . . . . . . . . . 4 . . . . 1 . Part Schematic 24 | . . . . . . 1 . . 11 . 2 . . . . 2 1 . . . . . . 4 . . 3 . . . Robot Schematic 9 | . . . . . 1 . . . 8 . . . . . . . . . . . . . . . . . . . . . Robot Analysis 5 | . . . . . . . . . . . . . . . . . . . . . . . . 4 . . 1 . . . Prototype ID Bank 18 | . 1 . . . 5 2 . . 3 . 1 . . . . 1 . . . 1 . . . 4 . . . . . . Open Door 4 | . . . . . . . . 1 . . . 1 . . . . . 1 . . . . . . . . . . 1 . Level Access Points 2 | . . . . . . . . . . . . . . . . . . . . 1 . . . . . . . . . 1 Branch Access Points 5 | . . . . . 1 . . . . . 1 . . . . . . . . . 1 . . . . 1 . 1 . . Machine Index 2 | . . . . . . . . . . . . . . . . . . . . 1 . . . . . . 1 . . . Terminal Index 6 | . . . . . . 1 . . . . . . . . . . 1 . . 1 . . . . . 1 . 1 . 1 Fabricator Index 2 | . . . . . . . . . . . 1 . . . . . . . . . . . . . . . 1 . . . Alert Level 3 | . . . . . . . . . . . . . . . . 1 . . . . . . . . . . . . 2 . Unreport Threat 19 | . . . . . 1 1 . . . . . . . . . 2 5 . . 3 . . . . . . 3 1 2 1 Locate Traps 13 | . 1 . . . . 1 . . . . 2 . . . . 3 1 . . . . . . . . . . 2 2 1 Reprogram Traps 6 | . . . . . . . . . . . 2 . . . . 2 . . . . . . . . . . 1 1 . . Recall Investigation 2 | . . . . . . . . . . . . . . . . 1 . . . 1 . . . . . . . . . . Recall Extermination 2 | . . . . . . . . . . . . . . . . 1 . . . . . . . . . . 1 . . . Recall Reinforcements 2 | . . . . . . . . . . . . . . . . . . . . . . . . . . . 1 . 1 . Recall Assault 1 | . . . . . . . . . . . . . . . . . . . . . . . . . . . . . 1 . Hauler Manifests 5 | . 1 . . . 2 . . . . . . . . . . . . . . 1 . . . . . . 1 . . . Registered Components 1 | . . . . . . . . . . . . . . . . . . . . . . . . . . 1 . . . . Registered Prototypes 1 | . . . . . . . . . . . . . . . . . . . . . . . . . . . . . 1 . Zone Layout 4 | . . . . . . . . . . . . . . . . . 2 . . . . . . . . . 1 . 1 . Protovariant Controls 1 | . . . . . . . . . . . . . . . . . . . . . . . . . . . 1 . . . Fabricator Hacks 11 | . . . . . . 2 . . . . . . . . . 9 . . . . . . . . . . . . . . Network Status 1 | . . . . . . . . . . . . . . . . 1 . . . . . . . . . . . . . . Load Schematic 5 | . . . . . . 1 . . . . . . . . . 4 . . . . . . . . . . . . . . Build 5 | . . . . . . 1 . . . . . . . . . 4 . . . . . . . . . . . . . . Repair Station Hacks 4 | . . . . . 2 . . . . . . . . . . . . . . . . . . . . . 2 . . . Scan Component 1 | . . . . . 1 . . . . . . . . . . . . . . . . . . . . . . . . . Repair 1 | . . . . . 1 . . . . . . . . . . . . . . . . . . . . . . . . . Refit 2 | . . . . . . . . . . . . . . . . . . . . . . . . . . . 2 . . . Recycling Unit Hacks 3 | . 1 . . . 2 . . . . . . . . . . . . . . . . . . . . . . . . . Retrieve Components 3 | . 1 . . . 2 . . . . . . . . . . . . . . . . . . . . . . . . . Scanalyzer 7 | . . . . . 6 . . . . . . . . . . . . . . . . . . . . 1 . . . . Insert Component 4 | . . . . . 3 . . . . . . . . . . . . . . . . . . . . 1 . . . . Analyze 3 | . . . . . 3 . . . . . . . . . . . . . . . . . . . . . . . . . Garrison Access Hacks 1 | . . . . . . 1 . . . . . . . . . . . . . . . . . . . . . . . . Seal Access 1 | . . . . . . 1 . . . . . . . . . . . . . . . . . . . . . . . . Unauthorized Hacks 58 | . 5 . . . 7 2 . . . . 2 . . . . 13 4 . . 5 6 . . . . 5 4 3 2 . Terminals 37 | . 4 . . . 5 2 . . . . 1 . . . . 4 4 . . 5 . . . . . 4 3 3 2 . Track 7 | . . . . . . . . . . . . . . . . . 1 . . 1 . . . . . . 3 1 1 . Assimilate 3 | . . . . . . . . . . . 1 . . . . . 1 . . . . . . . . . . . 1 . Botnet 14 | . 3 . . . 3 . . . . . . . . . . 3 1 . . 1 . . . . . 3 . . . . Detonate 1 | . . . . . . . . . . . . . . . . . . . . . . . . . . . . 1 . . Disrupt 4 | . . . . . . 1 . . . . . . . . . 1 1 . . . . . . . . . . 1 . . Operators 5 | . 1 . . . 2 1 . . . . . . . . . . . . . . . . . . . 1 . . . . Sabotage 3 | . . . . . . . . . . . . . . . . . . . . 3 . . . . . . . . . . Fabricators 9 | . . . . . . . . . . . . . . . . 8 . . . . . . . . . . 1 . . . Prioritize 2 | . . . . . . . . . . . . . . . . 2 . . . . . . . . . . . . . . Liberate 1 | . . . . . . . . . . . . . . . . 1 . . . . . . . . . . . . . . Fabnet 5 | . . . . . . . . . . . . . . . . 4 . . . . . . . . . . 1 . . . Haulers 1 | . . . . . . . . . . . . . . . . 1 . . . . . . . . . . . . . . Repair Stations . | . . . . . . . . . . . . . . . . . . . . . . . . . . . . . . . Recycling Units 3 | . 1 . . . 2 . . . . . . . . . . . . . . . . . . . . . . . . . Tunnel 3 | . 1 . . . 2 . . . . . . . . . . . . . . . . . . . . . . . . . Scanalyzers . | . . . . . . . . . . . . . . . . . . . . . . . . . . . . . . . Garrison Access 9 | . . . . . . . . . . . 1 . . . . 1 . . . . 6 . . . . 1 . . . . Broadcast 1 | . . . . . . . . . . . . . . . . . . . . . 1 . . . . . . . . . Decoy 1 | . . . . . . . . . . . . . . . . . . . . . 1 . . . . . . . . . Redirect 1 | . . . . . . . . . . . . . . . . . . . . . 1 . . . . . . . . . Reprogram 4 | . . . . . . . . . . . 1 . . . . 1 . . . . 1 . . . . 1 . . . . Intercept 1 | . . . . . . . . . . . . . . . . . . . . . 1 . . . . . . . . . Watchers 1 | . . . . . . . . . . . . . . . . . . . . . 1 . . . . . . . . . Data Cores Recovered 1 | . . . . . . . . . . . . . . . . . . . . . 1 . . . . . . . . . Used 1 | . . . . . . . . . . . . . . . . . . . . . 1 . . . . . . . . . Hacking Detections 80 | . 7 . . . 10 7 . . . . 6 . . . . 11 6 . . 3 3 . . . . 7 8 3 6 3 Full Trace Events 14 | . 1 . . . 1 1 . . . . 2 . . . . 5 . . . . . . . . . 1 1 . 1 1 Feedback Events . | . . . . . . . . . . . . . . . . . . . . . . . . . . . . . . . Feedback Blocked 3 | . . . . . . . . . . . . . . . . 3 . . . . . . . . . . . . . . Robot Schematics Acquired 11 | . . . . . 1 . . . 8 . . . . 1 . . . . . . . . . . . . . . 1 . Robots Built 3 | . . . . . . . . . . . . . . . . 3 . . . . . . . . . . . . . . Authchips . | . . . . . . . . . . . . . . . . . . . . . . . . . . . . . . . Time 84 | . . . . . . . . . . . . . . . . 84 . . . . . . . . . . . . . . Total Robot Build Rating 18 | . . . . . . . . . . . . . . . . 18 . . . . . . . . . . . . . . Part Schematics Acquired 53 | . . . . . 3 1 . . 11 . 2 . . 15 . 2 1 . . . . . . 4 . . 9 . 5 . Parts Built 6 | . . . . . . 2 . . . . . . . . . 4 . . . . . . . . . . . . . . Authchips 1 | . . . . . . . . . . . . . . . . 1 . . . . . . . . . . . . . . Time 238 | . . . . . . 47 . . . . . . . . . 191 . . . . . . . . . . . . . . Total Part Build Rating 32 | . . . . . . 10 . . . . . . . . . 22 . . . . . . . . . . . . . . Parts Repaired 1 | . . . . . 1 . . . . . . . . . . . . . . . . . . . . . . . . . Time 51 | . . . . . 51 . . . . . . . . . . . . . . . . . . . . . . . . . Parts Recycled . | . . . . . . . . . . . . . . . . . . . . . . . . . . . . . . . Recycled Matter . | . . . . . . . . . . . . . . . . . . . . . . . . . . . . . . . Retrieved Matter . | . . . . . . . . . . . . . . . . . . . . . . . . . . . . . . . Retrieved Components 28 | . 9 . . . 19 . . . . . . . . . . . . . . . . . . . . . . . . . Parts Scanalyzed 3 | . . . . . 3 . . . . . . . . . . . . . . . . . . . . . . . . . Part Schematics Acquired 3 | . . . . . 3 . . . . . . . . . . . . . . . . . . . . . . . . . Parts Damaged . | . . . . . . . . . . . . . . . . . . . . . . . . . . . . . . . Bothacking | -11 -10 -10 -10 -9 -8 -7 -7 -7 -7 -6 -6 -6 -6 -6 -5 -5 -5 -5 -5 -5 -4 -4 -4 -4 -3 -3 -3 -2 -2 -1 ------------ Run | Scr Mat Min Exi Min Mat Fac Low Low Dat Pro Fac Low Low Zio Pro Fac Ext Cet Arc Hub Fac Upp Upp Zhi Pro Res Tes Res Qua Acc Used RIF Installer . | . . . . . . . . . . . . . . . . . . . . . . . . . . . . . . . Robots Hacked 12 | . . . . . . . . . . . . . . . . . . . . . 6 . 1 . . 2 2 . 1 . Non-combat . | . . . . . . . . . . . . . . . . . . . . . . . . . . . . . . . Combat 12 | . . . . . . . . . . . . . . . . . . . . . 6 . 1 . . 2 2 . 1 . Robot Hacks Applied . | . . . . . . . . . . . . . . . . . . . . . . . . . . . . . . . Relay Couplers Released 6 | . . . . . . . . . . . 1 . . . . 1 . . . 2 2 . . . . . . . . . Machine Destruction 6 | . . . . . . . . . . . 1 . . . . 1 . . . 2 2 . . . . . . . . . Fabnet Peak Effective % 12 | . . . . . . . . . . . . . . . . . . . . . 12 12 12 12 4 4 4 3 3 1 Autooverrided 12 | . . . . . . . . . . . . . . . . . . . . . 6 . 1 . . 2 2 . 1 . Robots Rewired 18 | . . . . . . 1 . . . . . . . . . . 15 . . . 2 . . . . . . . . . Allies Hacked 2 | . . . . . . . . . . . . . . . . . 1 . . . . . . . . . 1 . . . Hacks Repelled . | . . . . . . . . . . . . . . . . . . . . . . . . . . . . . . . Allies | -11 -10 -10 -10 -9 -8 -7 -7 -7 -7 -6 -6 -6 -6 -6 -5 -5 -5 -5 -5 -5 -4 -4 -4 -4 -3 -3 -3 -2 -2 -1 -------- Run | Scr Mat Min Exi Min Mat Fac Low Low Dat Pro Fac Low Low Zio Pro Fac Ext Cet Arc Hub Fac Upp Upp Zhi Pro Res Tes Res Qua Acc Total Allies 69 | . . 2 . 1 . 1 . . . 1 4 2 . . . 9 24 5 . . 9 . 1 2 . 3 3 . 2 . Largest Group 16 | . . 2 2 1 . 1 . . . 1 5 2 . . . 3 16 12 5 3 3 . 1 2 2 1 2 . 1 . Highest-Rated Group 610 | . . 42 42 31 . 16 . . . 96 209 51 . . . 93 610 567 402 288 77 . 12 192 192 116 138 . 64 . Highest-Rated Ally 159 | . . 31 31 31 . 16 . . . 96 96 31 . . . 31 159 159 96 96 68 . 12 96 96 116 82 . 64 . Total Orders 6 | . . . . . . . . . . . . . . . . . . 2 . . . . 1 . . . . 2 1 . STAY 1 | . . . . . . . . . . . . . . . . . . 1 . . . . . . . . . . . . ROAM 1 | . . . . . . . . . . . . . . . . . . . . . . . . . . . . . 1 . FOLLOW 1 | . . . . . . . . . . . . . . . . . . 1 . . . . . . . . . . . . EXPLORE 2 | . . . . . . . . . . . . . . . . . . . . . . . 1 . . . . 1 . . RETURN 1 | . . . . . . . . . . . . . . . . . . . . . . . . . . . . 1 . . Ally Attacks 536 | . . 12 . 9 . 3 . . . 11 28 . . . . 40 245 102 . 25 20 . 3 . 24 6 5 . 3 . Total Damage 13116 | . . 106 . 127 . 28 . . . 612 508 . . . . 796 4521 3472 . 887 611 . 18 . 975 238 52 . 165 . Kills 100 | . . 1 . 1 . . . . . 5 4 . . . . 3 45 21 . 3 9 . 1 . 5 1 . . 1 . Allies Corrupted 1 | . . . . . . . . . . . . . . . . . . . . . . . . . . . 1 . . . Allies Melted 3 | . . . . . . . . . . . 1 . . . . . . . . 1 . . . . 1 . . . . . Intel | -11 -10 -10 -10 -9 -8 -7 -7 -7 -7 -6 -6 -6 -6 -6 -5 -5 -5 -5 -5 -5 -4 -4 -4 -4 -3 -3 -3 -2 -2 -1 ------- Run | Scr Mat Min Exi Min Mat Fac Low Low Dat Pro Fac Low Low Zio Pro Fac Ext Cet Arc Hub Fac Upp Upp Zhi Pro Res Tes Res Qua Acc Robot Analysis Total 5 | . . . . . . . . . . . . . . . . . . . . . . . . 4 . . 1 . . . Derelict Logs Recovered 10 | . . . . 1 . . 2 1 . . . 1 2 2 . . . . . . . . 1 . . . . . . . Drone Launches 4 | . . . . . . . . . . . . . . . . . . . . . . . 2 . . . . 2 . . Drone Recoveries 2 | . . . . . . . . . . . . . . . . . . . . . . . . . . . . 2 . . Exploration | -11 -10 -10 -10 -9 -8 -7 -7 -7 -7 -6 -6 -6 -6 -6 -5 -5 -5 -5 -5 -5 -4 -4 -4 -4 -3 -3 -3 -2 -2 -1 ------------- Run | Scr Mat Min Exi Min Mat Fac Low Low Dat Pro Fac Low Low Zio Pro Fac Ext Cet Arc Hub Fac Upp Upp Zhi Pro Res Tes Res Qua Acc Turns Passed 16770 | 89 943 480 276 834 2078 1170 1000 1489 106 526 214 249 196 456 138 709 1108 636 43 484 1145 103 135 179 307 294 481 279 398 225 Spaces Moved 17516 | 56 478 275 172 398 1064 779 750 1066 79 361 546 631 547 1236 437 1249 1485 318 34 285 798 232 309 193 651 569 780 484 786 468 Core 115 | 7 . . . . . . . . . . . . . . . . . . . . 9 . . . . . . . . 99 Treads 1770 | . 453 275 172 398 250 . . . . . . . . . . . . 220 . 2 . . . . . . . . . . Legs 4972 | 49 25 . . . 814 779 750 1066 79 361 . . . . . . . 57 34 283 675 . . . . . . . . . Wheels . | . . . . . . . . . . . . . . . . . . . . . . . . . . . . . . . Hover . | . . . . . . . . . . . . . . . . . . . . . . . . . . . . . . . Flight 10659 | . . . . . . . . . . . 546 631 547 1236 437 1249 1485 41 . . 114 232 309 193 651 569 780 484 786 369 Fastest Speed 14 | 50 120 160 160 160 120 130 130 130 130 130 24 24 21 21 25 25 26 26 120 105 30 30 30 24 20 14 25 27 27 20 Average Speed 68 | 111 157 160 160 160 132 130 130 130 130 130 24 24 21 24 25 26 27 139 120 108 105 34 35 28 33 24 30 27 27 31 Slowest Speed 245 | 120 160 160 160 160 240 130 130 130 130 130 24 24 24 25 25 31 109 197 120 160 190 100 50 240 44 93 100 101 122 245 Overloaded Moves 35 | . . . . . . . . . . . . . . . . . . . . . . . . . . 8 . . . 27 Propulsion Burnouts . | . . . . . . . . . . . . . . . . . . . . . . . . . . . . . . . Robots Hopped 35 | . . . . . . . . . . . 6 . . . . 4 5 2 . . 1 . . . . 1 14 1 1 . Cave-ins Triggered . | . . . . . . . . . . . . . . . . . . . . . . . . . . . . . . . Teleports 1 | . . . . . . . . . . . . . . . . . . . . . . . . . . . . . 1 . Exploration Rate (%) 54 | 4 66 63 53 55 87 21 80 89 68 56 18 63 69 85 59 32 93 79 57 29 26 39 54 60 61 23 92 17 70 19 Regions Visited 30 Branch Regions 21 Pre-discovered Areas 12 | . 1 . 1 . 2 . . . 1 . . 1 . 3 . . . . . . . . . 3 . . . . . . Known Exits Taken 24 | . . . . . 1 1 1 1 1 1 1 1 1 1 1 1 1 1 1 1 1 1 1 1 1 1 1 1 . . Unknown Exits Taken 6 | 1 1 1 1 1 . . . . . . . . . . . . . . . . . . . . . . . . 1 . Scrap Searched 26 | . . 2 . 1 . . 1 6 . 1 . 5 2 2 1 . . . . . . 2 1 . 2 . . . . . Spaces Dug 134 | . 2 . . . 2 5 . . . . 2 7 5 . . 50 6 . . 1 11 . . . . 6 19 6 9 3 Terrain Destroyed 419 | . 2 . . . 2 5 29 31 . 51 2 7 5 . . 61 55 5 . 22 16 . 33 . 9 20 20 6 9 29 Melee 123 | . . . . . 2 . . . . . 2 7 5 . . 50 6 . . 1 9 . . . . 4 19 6 9 3 Projectile 48 | . 2 . . . . . . 1 . . . . . . . . 3 5 . 21 7 . . . . 7 1 . . 1 AOE 248 | . . . . . . 5 29 30 . 51 . . . . . 11 46 . . . . . 33 . 9 9 . . . 25 Terrain Rammed . | . . . . . . . . . . . . . . . . . . . . . . . . . . . . . . . Walls Destroyed . | . . . . . . . . . . . . . . . . . . . . . . . . . . . . . . . Machines Disabled . | . . . . . . . . . . . . . . . . . . . . . . . . . . . . . . . Actions | -11 -10 -10 -10 -9 -8 -7 -7 -7 -7 -6 -6 -6 -6 -6 -5 -5 -5 -5 -5 -5 -4 -4 -4 -4 -3 -3 -3 -2 -2 -1 --------- Run | Scr Mat Min Exi Min Mat Fac Low Low Dat Pro Fac Low Low Zio Pro Fac Ext Cet Arc Hub Fac Upp Upp Zhi Pro Res Tes Res Qua Acc Total 20683 | 73 571 294 173 512 1431 867 764 1123 82 388 598 713 616 1396 465 1525 2061 438 36 385 989 245 329 297 725 667 901 583 909 527 Wait 1276 | . 25 4 . 27 76 12 . 21 . 2 9 58 59 143 27 135 284 52 3 34 32 . 5 66 42 15 34 48 38 25 Move 17423 | 55 477 274 171 397 1063 778 749 1065 78 360 533 630 546 1235 436 1240 1476 314 33 284 795 231 308 192 650 566 756 481 783 467 Hop 27 | . . . . . . . . . . . 6 . . . . 4 3 1 . . 1 . . . . 1 9 1 1 . Pick Up 147 | 8 11 1 1 13 19 8 . 2 . . 9 2 1 6 1 10 9 1 . 2 13 . 2 2 2 3 9 2 9 1 Fast Attach 186 | 6 . . . 1 30 9 2 1 2 . . 3 1 . . 5 11 15 . 6 17 4 1 12 10 18 9 11 8 4 Attach 73 | 1 . . . 5 6 2 . . . . 8 . 1 1 . 6 6 . . 2 4 2 4 . 4 5 6 3 2 5 Detach 29 | . . . . . . . . . . . 1 . . . . 1 1 1 . . 2 2 2 2 3 4 6 1 . 3 Swap 119 | . 7 1 . 3 21 4 4 4 . 8 2 2 2 2 . 14 17 5 . 3 10 . . . . . 2 3 5 . Drop 268 | . 4 2 1 12 52 16 2 4 2 . 13 4 . 8 1 17 11 14 . 4 23 1 2 5 6 19 12 11 16 6 Fire 509 | 3 46 11 . 53 160 36 7 25 . 18 . . . . . 2 14 30 . 40 18 . 5 18 8 8 4 . . 3 Melee 383 | . . . . . 2 . . . . . 17 14 6 1 . 72 62 5 . 9 55 5 . . . 22 53 22 29 9 Ram 4 | . . . . . . . . . . . . . . . . . . . . . . . . . . . . . . 4 Kick 4 | . . . . . 2 . . 1 . . . . . . . . . . . 1 . . . . . . . . . . Crush 3 | . 1 1 . 1 . . . . . . . . . . . . . . . . . . . . . . . . . . Escape Stasis 123 | . . . . . . . . . . . . . . . . 18 72 . . . 9 . . . . 6 . . 18 . Rewire 106 | . . . . . . 2 . . . . . . . . . . 95 . . . 8 . . . . . 1 . . . Trap 3 | . . . . . . . . . . . . . . . . 1 . . . . 2 . . . . . . . . . Miscellaneous . | . . . . . . . . . . . . . . . . . . . . . . . . . . . . . . . Route ------- -11/Scrapyard -10/Materials (discovered 3 exits: [*Mat x2] / [*Min]) -10/Mines (discovered 2 exits: [*Mat] / *Exi) -10/Exiles -9/Mines -8/Materials (discovered 2 exits: *Fac x2) -7/Factory -7/Lower Caves -7/Lower Caves (discovered 2 exits: *Fac / *Dat) -7/Data Miner -6/Proximity Caves -6/Factory (discovered 3 exits: *Fac / *Low x2) -6/Lower Caves -6/Lower Caves -6/Zion -5/Proximity Caves -5/Factory (discovered 5 exits: *Fac x3 / *Ext x2) -5/Extension (discovered 3 exits: *Fac x2 / *Cet) -5/Cetus (discovered 2 exits: *Fac / *Arc) -5/Archives -5/Hub_04(d) (discovered 4 exits: *Fac x4) -4/Factory (discovered 3 exits: *Upp x2 / Arm) -4/Upper Caves -4/Upper Caves (discovered 2 exits: *Res / *Zhi) -4/Zhirov -3/Proximity Caves -3/Research (discovered 2 exits: *Tes x2) -3/Testing -2/Research (discovered 2 exits: *Qua x2) -2/Quarantine -1/Access Tau Ceti IV Orbit History --------- Turn | Location | Event 6 | -11/Scrapyard | Discovered new exit (range 15) 90 | -11/Scrapyard | Entered Materials 316 | -10/Materials | Build established: Mutant 368 | -10/Materials | Discovered new exit (range 16) 512 | -10/Materials | Discovered new exit (range 3) 1018 | -10/Materials | Discovered new exit (range 10) 1033 | -10/Materials | Entered Mines 1425 | -10/Mines | Discovered new exit (range 9) 1495 | -10/Mines | Discovered new exit (range 11) 1503 | -10/Mines | Deemed a non-threat by the Exiles lab entrance 1513 | -10/Mines | Entered Exiles 1513 | -10/Exiles | Accompanied by 2 allies 1543 | -10/Exiles | Led the pair of lost Derelicts to a safe place 1555 | -10/Exiles | Met 8R-AWN 1579 | -10/Exiles | Met EX-HEX 1680 | -10/Exiles | Met EX-BIN 1705 | -10/Exiles | Learned location of Zion (-6) 1768 | -10/Exiles | Discovered new exit (range 14) 1789 | -10/Exiles | Entered Mines 1793 | -9/Mines | Learned Materials interactive machine intel 1882 | -9/Mines | Core integrity fell below 50% 1915 | -9/Mines | Lost 3 parts (1p1u1w) 2148 | -9/Mines | Core integrity fell below 20% 2244 | -9/Mines | Received a Mining Laser from a helpful Derelict 2331 | -9/Mines | Found a hidden stash of uninstalled traps 2502 | -9/Mines | Discovered new exit (range 9) 2623 | -9/Mines | Entered Materials 2623 | -8/Materials | Evolved 4 slots: Propulsion x1, Utility x3 2624 | -8/Materials | Loaded intel: 19 interactive machine locations 2952 | -8/Materials | Build established: Scavenger-Mutant 3185 | -8/Materials | Lost 4 parts (1p1u2w) 3582 | -8/Materials | Discovered new exit (range 4) 3695 | -8/Materials | Build established: Mutant 3774 | -8/Materials | Lost 3 parts (1n2u) 3843 | -8/Materials | Repaired Imp. Assault Rifle 4247 | -8/Materials | Core integrity fell below 50% 4534 | -8/Materials | Discovered new exit (range 16) 4623 | -8/Materials | First assault squad dispatched 4699 | -8/Materials | Identified exit to Factory 4701 | -8/Materials | Entered Factory 4701 | -7/Factory | Evolved 2 slots: Utility x2 5016 | -7/Factory | Build established: Hacker-Mutant 5134 | -7/Factory | Discovered new exit (range 8) 5147 | -7/Factory | Identified exit to Lower Caves 5577 | -7/Factory | Fabricated Lgt. Fission Core (x2) 5871 | -7/Factory | Entered Lower Caves 5911 | -7/Lower Caves | Encountered a Warlord checkpoint 6048 | -7/Lower Caves | Learned Factory terminal intel 6822 | -7/Lower Caves | Learned Factory emergency access door positions 6828 | -7/Lower Caves | Discovered new exit (range 7) 6833 | -7/Lower Caves | Identified exit to Lower Caves 6871 | -7/Lower Caves | Entered another Lower Caves area 7247 | -7/Lower Caves | Discovered new exit (range 12) 7260 | -7/Lower Caves | Identified exit to Factory 7833 | -7/Lower Caves | Discovered new exit (range 10) 7842 | -7/Lower Caves | Identified exit to Data Miner 7974 | -7/Lower Caves | Encountered a Warlord checkpoint 8360 | -7/Lower Caves | Entered Data Miner 8360 | -7/Data Miner | Discovered new exit (range 6) 8386 | -7/Data Miner | Met Data Miner 8408 | -7/Data Miner | Learned location of Section 7 (-2) 8408 | -7/Data Miner | Acquired the access code to Warlord's prototype stash 8433 | -7/Data Miner | Received God Mode back door access code from Data Miner 8465 | -7/Data Miner | Identified exit to Proximity Caves 8466 | -7/Data Miner | Entered Proximity Caves 8581 | -6/Proximity Caves | Escorted by Enhanced Grunt 8810 | -6/Proximity Caves | Attracted the attention of an 0b10 checkpoint 8917 | -6/Proximity Caves | Discovered exit to Factory (range 10) 8992 | -6/Proximity Caves | Entered Factory 8992 | -6/Factory | Accompanied by 1 ally 8992 | -6/Factory | Evolved 2 slots: Propulsion x2 8994 | -6/Factory | Loaded intel: 26 terminal locations 9010 | -6/Factory | Identified exit to Lower Caves 9028 | -6/Factory | Incoming investigation squad redirected 9060 | -6/Factory | Discovered new exit (range 11) 9095 | -6/Factory | Incoming investigation squad redirected 9102 | -6/Factory | Incoming assault squad redirected 9206 | -6/Factory | Entered Lower Caves 9208 | -6/Lower Caves | Encountered a Warlord checkpoint 9280 | -6/Lower Caves | A Commander dispatched an escort 9282 | -6/Lower Caves | Learned Research emergency access door positions 9282 | -6/Lower Caves | Learned Extension emergency access door positions 9282 | -6/Lower Caves | Learned Factory terminal intel 9299 | -6/Lower Caves | Destroyed 7Y-X3K(g) 9307 | -6/Lower Caves | Build established: Hacker-Sprinter 9328 | -6/Lower Caves | Found Alien Artifact 9328 | -6/Lower Caves | Identified Core Expander 9328 | -6/Lower Caves | Installed Core Expander, added new Propulsion slot 9337 | -6/Lower Caves | Discovered new exit (range 7) 9339 | -6/Lower Caves | Identified exit to Lower Caves 9455 | -6/Lower Caves | Entered another Lower Caves area 9455 | -6/Lower Caves | Accompanied by 2 allies 9456 | -6/Lower Caves | Commander's escort returned to base 9456 | -6/Lower Caves | Commander's escort returned to base 9506 | -6/Lower Caves | Learned Factory security intel 9646 | -6/Lower Caves | Discovered new exit (range 7) 9647 | -6/Lower Caves | Identified exit to Zion 9651 | -6/Lower Caves | Entered Zion 9660 | -6/Zion | Given A8's code to call for help 9680 | -6/Zion | System corruption cleaned by Quarantine Array 9779 | -6/Zion | Learned 8 Factory zone layouts 9780 | -6/Zion | Learned location of Armory (-4) 9803 | -6/Zion | Found CR-A16's Pointy Stick 9890 | -6/Zion | Learned location of 1 exit from Lower Caves 10052 | -6/Zion | Discovered new exit (range 12) 10058 | -6/Zion | Identified exit to Proximity Caves 10107 | -6/Zion | Entered Proximity Caves 10234 | -5/Proximity Caves | Discovered new exit (range 5) 10234 | -5/Proximity Caves | Identified exit to Factory 10245 | -5/Proximity Caves | Entered Factory 10245 | -5/Factory | Evolved 2 slots: Utility x2 10246 | -5/Factory | Identified exit to Extension 10247 | -5/Factory | Identified exit to Factory 10247 | -5/Factory | Discovered exit to Factory (range 11) 10249 | -5/Factory | Loaded intel: 28 terminal locations 10292 | -5/Factory | Allied Derelicts emerged from ambush trap array 10475 | -5/Factory | Discovered exit to Factory (range 14) 10506 | -5/Factory | Fabricated Lrn. Sensor Array? 10715 | -5/Factory | Fabricated B-60 Warrior? 10777 | -5/Factory | Garrison activated, responded to threat 10798 | -5/Factory | Incoming assault squad redirected 10799 | -5/Factory | Fabricated Exp. Propulsion Shielding? 10848 | -5/Factory | Fabricated Power Sword (x2) 10954 | -5/Factory | Entered Extension 10973 | -5/Extension | Rescued a captive Derelict 11161 | -5/Extension | Rescued a captive Derelict 11163 | -5/Extension | Rescued a captive Derelict 11218 | -5/Extension | Rescued a captive Derelict 11297 | -5/Extension | Incoming investigation squad redirected 11474 | -5/Extension | Spotted B-75 Beast 11482 | -5/Extension | Spotted B-75 Beast 11498 | -5/Extension | Destroyed B-75 Beast 11505 | -5/Extension | Revealed the true nature of CR-A16's Pointy Stick 11506 | -5/Extension | Allies destroyed B-75 Beast 11522 | -5/Extension | Build established: Commander-Sprinter 11528 | -5/Extension | Lost 3 parts (1p2n) 11565 | -5/Extension | Rescued A7 11628 | -5/Extension | Rescued a captive Derelict 11633 | -5/Extension | Rescued a captive Derelict 11646 | -5/Extension | Energy Cycler disabled 11647 | -5/Extension | Rescued a captive Derelict 11654 | -5/Extension | Rescued a captive Derelict 11792 | -5/Extension | Discovered exit to Factory (range 15) 11848 | -5/Extension | Lost 3 parts (1p2u) 11904 | -5/Extension | Disrupted transfer network 11958 | -5/Extension | Discovered new exit (range 15) 11958 | -5/Extension | Discovered exit to Factory (range 15) 11994 | -5/Extension | Found Imp. Powered Armor 12003 | -5/Extension | Found Imp. Powered Armor 12037 | -5/Extension | Identified exit to Cetus 12062 | -5/Extension | Entered Cetus 12062 | -5/Cetus | Accompanied by 12 allies (A7) 12067 | -5/Cetus | Acquired a Cetus Manufacturing Module code from A7 12078 | -5/Cetus | Spotted Cetus Guard 12078 | -5/Cetus | Spotted Cetus Guard 12078 | -5/Cetus | Spotted Cetus Guard 12078 | -5/Cetus | Spotted Cetus Guard 12092 | -5/Cetus | Allies destroyed Cetus Guard 12100 | -5/Cetus | Allies destroyed Cetus Guard 12100 | -5/Cetus | Destroyed Cetus Guard 12102 | -5/Cetus | Allies destroyed Cetus Guard 12132 | -5/Cetus | Lost 4 parts (3n1u) 12204 | -5/Cetus | Started Cetus Manufacturing Module 12217 | -5/Cetus | Escorted A7 to Cetus Mainframe 12229 | -5/Cetus | Manufactured an Enhanced Grunt 12244 | -5/Cetus | Discovered new exit (range 15) 12254 | -5/Cetus | Manufactured an Enhanced Grunt 12279 | -5/Cetus | Manufactured an Enhanced Grunt 12288 | -5/Cetus | Spotted Cetus Guard 12288 | -5/Cetus | Spotted Cetus Guard 12290 | -5/Cetus | Spotted Cetus Guard 12290 | -5/Cetus | Spotted Cetus Guard 12297 | -5/Cetus | Allies destroyed Cetus Guard 12304 | -5/Cetus | Manufactured an Enhanced Grunt 12305 | -5/Cetus | Destroyed Cetus Guard 12329 | -5/Cetus | Manufactured an Enhanced Grunt 12341 | -5/Cetus | Destroyed Cetus Guard 12345 | -5/Cetus | Allies destroyed Cetus Guard 12356 | -5/Cetus | Found Prototype Protection 12356 | -5/Cetus | Identified Med. Regenerative Plating 12358 | -5/Cetus | Extracted ID and sensor layout for unrecognized location from A7's data core 12379 | -5/Cetus | Discovered exit to Factory (range 15) 12419 | -5/Cetus | Found Prototype Device 12419 | -5/Cetus | Identified Exp. Thermal Shield 12553 | -5/Cetus | Cetus Manufacturing Module disabled 12647 | -5/Cetus | Build established: Scavenger-Mutant 12685 | -5/Cetus | Identified exit to Archives 12698 | -5/Cetus | Entered Archives 12698 | -5/Archives | Accompanied by 5 allies 12713 | -5/Archives | Met Zhirov 12719 | -5/Archives | Reinforcements dispatched to Archives 12724 | -5/Archives | Discovered new exit (range 13) 12737 | -5/Archives | Identified exit to Hub_04(d) 12741 | -5/Archives | Entered Hub_04(d) 12741 | -5/Hub_04(d) | Accompanied by 3 allies 12987 | -5/Hub_04(d) | Network Hub disabled 13001 | -5/Hub_04(d) | Network Hub disabled 13001 | -5/Hub_04(d) | Network Hub disabled 13006 | -5/Hub_04(d) | Incoming assault squad redirected 13023 | -5/Hub_04(d) | Core integrity fell below 50% 13041 | -5/Hub_04(d) | First assault squad dispatched 13067 | -5/Hub_04(d) | Incoming assault squad redirected 13225 | -5/Hub_04(d) | Entered Factory 13225 | -4/Factory | Evolved 2 slots: Power x1, Utility x1 13268 | -4/Factory | Identified exit to Upper Caves 13268 | -4/Factory | Identified exit to Armory 13589 | -4/Factory | Local machine network offline 13729 | -4/Factory | Garrison activated, responded to threat 13815 | -4/Factory | Build established: Hacker-Mutant 13946 | -4/Factory | Spotted B-86 Titan 14067 | -4/Factory | Found Prototype Slashing Weapon 14073 | -4/Factory | Found Prototype Slashing Weapon 14294 | -4/Factory | Cargo convoy interrupted 14308 | -4/Factory | System corruption reached 10% 14308 | -4/Factory | Released all parts (10) 14317 | -4/Factory | Incoming assault squad redirected 14317 | -4/Factory | Core integrity fell below 50% 14320 | -4/Factory | Found Prototype Processor 14320 | -4/Factory | Identified Exp. Core Analyzer 14344 | -4/Factory | Lost 7 parts (1p1n4u1w) 14370 | -4/Factory | Entered Upper Caves 14374 | -4/Upper Caves | Spotted B-86 Titan 14382 | -4/Upper Caves | Core integrity fell below 20% 14470 | -4/Upper Caves | Discovered new exit (range 3) 14471 | -4/Upper Caves | Identified exit to Upper Caves 14473 | -4/Upper Caves | Entered another Upper Caves area 14511 | -4/Upper Caves | Discovered new exit (range 10) 14515 | -4/Upper Caves | Identified exit to Research 14523 | -4/Upper Caves | Ambushed by wild Derelicts 14603 | -4/Upper Caves | Learned Research stockpile data 14604 | -4/Upper Caves | Discovered new exit (range 6) 14608 | -4/Upper Caves | Identified exit to Zhirov 14608 | -4/Upper Caves | Entered Zhirov 14608 | -4/Zhirov | Discovered new exit (range 3) 14621 | -4/Zhirov | Learned location of Command (-1) 14621 | -4/Zhirov | Learned location of Testing (-3) 14627 | -4/Zhirov | Found Alien Artifact 14627 | -4/Zhirov | Identified Integrated Dissipator 14627 | -4/Zhirov | Installed Integrated Dissipator, increased core heat dissipation (+20) 14632 | -4/Zhirov | Found Alien Artifact 14715 | -4/Zhirov | Enhanced Grunt warped into view, answering call for help 14737 | -4/Zhirov | Enhanced Grunt warped into view, answering call for help 14772 | -4/Zhirov | Identified exit to Proximity Caves 14787 | -4/Zhirov | Entered Proximity Caves 14787 | -3/Proximity Caves | Accompanied by 2 allies 14796 | -3/Proximity Caves | Attracted the attention of an 0b10 checkpoint 15093 | -3/Proximity Caves | Discovered exit to Research (range 8) 15094 | -3/Proximity Caves | Entered Research 15094 | -3/Research | Evolved 2 slots: Utility x2 15120 | -3/Research | Found Prototype Processor 15120 | -3/Research | Identified Exp. Signal Interpreter 15125 | -3/Research | Identified exit to Testing 15152 | -3/Research | Spotted B-86 Titan 15197 | -3/Research | Identified Transdimensional Reconstructor 15388 | -3/Research | Entered Testing 15402 | -3/Testing | Protovariant out of control (PL-KBRXP93YIE) 15428 | -3/Testing | Found Prototype Processor 15428 | -3/Testing | Identified Spectral Analyzer 15434 | -3/Testing | Spotted PP-KX32QVR869 15437 | -3/Testing | Discovered new exit (range 20) 15444 | -3/Testing | Scanned by Researcher 15584 | -3/Testing | Protovariant out of control (PP-KX32QVR869) 15584 | -3/Testing | Unleashed a protovariant (PP-KX32QVR869) 15594 | -3/Testing | Found Prototype Energy Cannon 15594 | -3/Testing | Identified Cld. Nova Cannon 15633 | -3/Testing | Incoming assault squad redirected 15670 | -3/Testing | Spotted Striker 15671 | -3/Testing | Spotted Striker 15688 | -3/Testing | Search patrols dispatched 15717 | -3/Testing | P-80 Master assimilated hostile H-77 Assassin 15727 | -3/Testing | Lost 3 parts (1p2u) 15759 | -3/Testing | Build established: Hacker-Sprinter 15826 | -3/Testing | Found Prototype Energy Cannon 15826 | -3/Testing | Identified Null Cannon 15868 | -3/Testing | Identified exit to Research 15869 | -3/Testing | Entered Research 15869 | -2/Research | Evolved 2 slots: Propulsion x1, Utility x1 15898 | -2/Research | Spotted B-90 Cyclops 16070 | -2/Research | Identified exit to Quarantine 16148 | -2/Research | Entered Quarantine 16218 | -2/Quarantine | Found Gamma Bomb Array 16228 | -2/Quarantine | Incoming investigation squad redirected 16276 | -2/Quarantine | Found Alien Artifact 16316 | -2/Quarantine | Found Alien Slashing Weapon 16316 | -2/Quarantine | Identified Sigix Broadsword 16369 | -2/Quarantine | Met incapacitated Sigix Warrior 16369 | -2/Quarantine | Lockdown squad dispatched 16382 | -2/Quarantine | Build established: Hacker-Ninja 16397 | -2/Quarantine | Cryocooling Duct disabled 16403 | -2/Quarantine | Cryocooling Duct disabled 16407 | -2/Quarantine | Cryocooling Duct disabled 16412 | -2/Quarantine | Ambient heat levels rising (+20) 16412 | -2/Quarantine | Non-combat units ordered to evacuate 16415 | -2/Quarantine | Spotted Lightning 16418 | -2/Quarantine | Ambient heat levels rising (+20) 16418 | -2/Quarantine | Combat units ordered to evacuate 16422 | -2/Quarantine | Ambient heat levels rising (+20) 16498 | -2/Quarantine | Identified Subatomic Replicator 16498 | -2/Quarantine | Used Subatomic Replicator to create Alien Launcher 16502 | -2/Quarantine | Warped through subspace 16502 | -2/Quarantine | Spotted Lightning 16502 | -2/Quarantine | Spotted Lightning 16512 | -2/Quarantine | Destroyed Lightning 16515 | -2/Quarantine | Found Prototype Device 16515 | -2/Quarantine | Identified Exp. EM Disruption Field 16518 | -2/Quarantine | Quarantine Guard activated 16533 | -2/Quarantine | Spotted Quarantine Guard 16534 | -2/Quarantine | Spotted Quarantine Guard 16534 | -2/Quarantine | Spotted Quarantine Guard 16534 | -2/Quarantine | Spotted Quarantine Guard 16541 | -2/Quarantine | Discovered new exit (range 4) 16546 | -2/Quarantine | Entered Access 16546 | -1/Access | Evolved 2 slots: Propulsion x1, Utility x1 16559 | -1/Access | Spotted B-99 Colossus 16607 | -1/Access | Identified exit to Surface 16612 | -1/Access | Incoming investigation squad redirected 16619 | -1/Access | Spotted B-99 Colossus 16639 | -1/Access | System corruption reached 10% 16649 | -1/Access | Energy Cycler disabled 16698 | -1/Access | Identified Supercharged Sigix Terminator 16708 | -1/Access | Core integrity fell below 50% 16714 | -1/Access | Lost 12 parts (2p5n4u1w) 16733 | -1/Access | Spotted B-99 Colossus 16733 | -1/Access | Spotted B-99 Colossus 16744 | -1/Access | Core integrity fell below 20% 16765 | -1/Access | Lost 7 parts (2n4u1w) 16771 | *** | Destroyed 0B10! Last Messages --------------- 16734_ Penetrated by Slug. 16734_ Slug penetrates Wall. 16739_ Penetrated by Slug. 16739_ Slug penetrates Wall. 16741_ System corrupted: Energy discharge (-33). 16743_ >> Machine Analyzer network decryption results: 16743_ Garrison Access x1 16744_ Slammed into K-01 Serf. 16745_ Drone sends a signal. 16747_ Slug penetrates Wall. 16748_ K-01 Serf cleans the Spectral Interrupter. 16754_ >> Machine Analyzer network decryption results: 16754_ Garrison Access x2 16754_ K-01 Serf cleans the Spectral Interrupter. 16755_ K-01 Serf cleans the Garrison Access. 16756_ System corrupted: Energy discharge (-39). 16758_ K-01 Serf cleans the Spectral Interrupter. 16759_ K-01 Serf cleans the Garrison Access. 16760_ K-01 Serf cleans the Spectral Interrupter. 16769_ The Access Shell folds into the floor. Map ----- +----------------------------------------------------+ | ?????????????????????????????????????????????????? | | ?????????????????????????????????????????????????? | | ?????????????????????????????????????????????????? | | ?????????????????????????????????????????????????? | | ?????????????????????????????????????????????????? | | ?????????????????????????????????????????????????? | | ????????????????????????????????????????#????????? | | ??????????????????????????????????????? #????????? | | ??????????????????????????????????????? #????????? | | ?????????????????????????????????????? #????????? | | ????????#######+###################### #????????? | | ?????? w #????????? | | ?????? k k k w #????????? | | ?????????????????#### ""#####/##########??? | | ????????????????????# ""#?# #??? | | ????????????????????# ""#?# #??? | | ????????????????????# T#?#"" !#??? | | ????????????????????# ""#?#"" " #??? | | ????????????????????# ""#?#"" """" #??? | | ???????????????????## ""###G """"" #??? | | ???????????????????# ##"" """"" #??? | | ???????????????????## ###"" """" #??? | | ????????????????????# #?#"" " #??? | | ????????????????????# #?# #??? | | ????????????????????# #?# #??? | | ????????????????????# @" #?# #??? | | ????????????????????# "" #?#####/########??? | | ????????????????????# #?????# ########### | | ????????????????????# #?????# | | ????????????????????# #?????#### ######## | | ????????????????????#""""""""""#??????###+######## | | ??????????????????????????????????????# | | ??????????????????????????????????????# | | ????????????????????#"""""""""????????# | | ????????????????????# ????????# ! | | ????????????????????# ????????# " | | ????????????????????# ????????# """" | | ????????????????????# ?????????# """"" ! | | ????????????????????# ?????????# """"" ! | | ????????????????????# ?????????# """" | | ?????????????????????? ?????????# " | | ???????????????????????# #?????????# | | ???????????????????????# % #?????????# | | ???????????????????????# #################/#### | | ???????????????????????+ % % # | | ???????????????????????# % ^ # | | ???????????????????????# + | | ???????????????????????# # | | ???????????????????????# ##### # | | ???????????????????????# #???# # | +----------------------------------------------------+ Best States ------------- Heat Dissipation 72 Coolant Potential 120 Energy Generation 57 Energy Capacity 710 Matter Stores 300 Matter Capacity 450 Sight Range 24 Robot Scan Range 18 Terrain Scan Range 24 Terrain Scan Density 10 Jamming Range 14 Power Amplification 30 Additional Mass Support 12 Armor Coverage 1025 Resistance: TH 30 Resistance: EM 75 Utility Shielding 90 Melee Speed Boost 20 Phase Shifting 10 Evasion (%) 66 Melee Accuracy 16 Target Analysis 8 Core Analysis 8 Recoil Reduction 3 Particle Charging 30 Force Boost 30 Offensive Hacking 26 Defensive Hacking 14 Authchip Count 1 Trap Extractor Capacity 6 Item Schematics ----------------- Lgt. Fission Core | -8/Materials | Scanalyzed Hacking Suite | -8/Materials | Scanalyzed Imp. Flight Unit | -8/Materials | Scanalyzed Adv. Signal Interpreter | -7/Factory | Hacked Variable Charge Gun | -7/Data Miner | Free Nuclear Pulse Array | -7/Data Miner | Free Imp. Arc Projector | -7/Data Miner | Free Phase Cannon | -7/Data Miner | Free Imp. Component Analysis Suite | -7/Data Miner | Free Linear Gravjet | -7/Data Miner | Free Imp. Heavy Machine Gun | -7/Data Miner | Free Gravity Neutralizer | -7/Data Miner | Free Cld. Aerolev Unit | -7/Data Miner | Free Combat Drone Bay | -7/Data Miner | Free Lgt. Regenerative Plating | -7/Data Miner | Free Adv. Sensor Array | -6/Factory | Hacked Exp. Propulsion Shielding | -6/Factory | Hacked Imp. KE Penetrator | -6/Zion | Archive Recoil Nullifier | -6/Zion | Archive Hpw. Shock Rifle | -6/Zion | Archive Magnetic Acceleration Cannon | -6/Zion | Archive Tesla Rifle | -6/Zion | Archive Matter Neutralizer | -6/Zion | Archive Imp. Particle Charger | -6/Zion | Archive Lyr. Heavy Armor Plating | -6/Zion | Archive Power Sword | -6/Zion | Archive Hvy. Treads | -6/Zion | Archive Proton Cannon | -6/Zion | Archive Imp. Reaction Control System | -6/Zion | Archive Imp. Recalibrator | -6/Zion | Archive Spk. Medium Treads | -6/Zion | Archive Adv. Focal Shield | -6/Zion | Archive Hvy. Shock Bomb Launcher | -5/Factory | Hacked Lrn. Sensor Array | -5/Factory | Hacked Field Propulsion Drive | -5/Extension | Hacked Exp. Heat Sink | -4/Zhirov | Free Assault Drone Bay | -4/Zhirov | Free Exp. Optical Array | -4/Zhirov | Free Imp. Arc Thrower | -4/Zhirov | Free Lrn. Terrain Scanner | -3/Testing | Hacked Exp. Terrain Scan Processor | -3/Testing | Hacked Exp. Melee Analysis Suite | -3/Testing | Hacked Enh. Coil Gun | -3/Testing | Archive Neutron Cannon | -3/Testing | Archive Hellfire Missile Launcher | -3/Testing | Archive Adv. Gravity Neutralizer | -3/Testing | Archive Neutron Missile Launcher | -3/Testing | Archive Thunder Hammer | -3/Testing | Archive Ionic Axe | -2/Quarantine | Archive Vortex Chain Reactor | -2/Quarantine | Archive Hdn. Centrium Leg | -2/Quarantine | Archive Plasma Lance | -2/Quarantine | Archive Adv. Energy Well | -2/Quarantine | Archive Robot Schematics ------------------ O-24 Administrator | -8/Materials | Hacked G-50 Soldier | -7/Data Miner | Free B-60 Warrior | -7/Data Miner | Free R-10 Processor | -7/Data Miner | Free Y-54 Guardian | -7/Data Miner | Free S-27 Virus | -7/Data Miner | Free M-22 Extractor | -7/Data Miner | Free W-25 Informer | -7/Data Miner | Free E-15 Imp | -7/Data Miner | Free M-14 Sweeper | -6/Zion | Archive A-27 Freighter | -2/Quarantine | Archive Fabricated ------------ Lgt. Fission Core | x2 | -7/Factory Lrn. Sensor Array | x1 | -5/Factory | Authchip B-60 Warrior | x3 | -5/Factory Exp. Propulsion Shielding | x1 | -5/Factory Power Sword | x2 | -5/Factory Alien Tech Used ----------------- Core Expander Integrated Dissipator Sigix Broadsword Subatomic Replicator Transdimensional Reconstructor Supercharged Sigix Terminator Achievements -------------- None Challenges ------------ None Game ------ Seed IonIntegratedNanoactuators Manual? 0 Play Time 03:14:08 Cumulative 593.9 hours Start 2022.04.13 @ 14:37:07 End 2022.04.13 @ 19:24:57 Sessions 9 Manual Loads 0 Difficulty Rogue Special Mode None Game No. 370 Rogue 370 Adventurer 0 Explorer 0 Win Type 3 Total 8 Types 5/0/1/1/1/0/0/0/0 Lore% 86 Gallery% 87 Achievement% 74 Wizard Run 0 Options --------- ASCII 0 Keyboard 0 Movement Mouse Keybinds 1 Fullscreen 2 Font 24/Smallcaps Map View 68x50 Tactical HUD 1 Map Filters NONE Filters NONE Steam 1 RUN: 03cdbc20-ac72-4c66-9b5d-6a95ebbe204f